Workbook

Sheet Przykład
A1: Nazwa | B1: produkt krajowy brutto na 1 mieszkańca | C1: Nakłady inwestycjne na 1 mieszkańca
B2: X | C2: Y | D2: X^2 | E2: X*Y | F2: Y^ | G2: (Y-Y^)^2 | H2: (Y-Yśr)^2
B3: [zł] | C3: [zł] | F3: Y^
A4: DOLNOŚLĄSKIE | B4: 57,228 | C4: 8,358 | D4: =B4^2 -> 3,275,043,984 | E4: =B4*C4 -> 478311624 | F4: =$E$26*B4+$E$25 -> 7504.872738 | G4: =(C4-F4)^2 -> 727826.1255 | H4: =(C4-$H$22)^2 -> 4957858.891
A5: KUJAWSKO-POMORSKIE | B5: 41,875 | C5: 4,736 | D5: =B5^2 -> 1,753,515,625 | E5: =B5*C5 -> 198320000 | F5: =$E$26*B5+$E$25 -> 5505.305533 | G5: =(C5-F5)^2 -> 591831.0032 | H5: =(C5-$H$22)^2 -> 1947071.391
A6: LUBELSKIE | B6: 35,712 | C6: 4,145 | D6: 1,275,346,944 | E6: 148026240 | F6: 4702.63943 | G6: 310961.7337 | H6: 3945685.641
A7: LUBUSKIE | B7: 42,755 | C7: 5,426 | D7: 1,827,990,025 | E7: 231988630 | F7: 5619.916302 | G7: 37603.53229 | H7: 497553.8906
A8: ŁÓDZKIE | B8: 48,126 | C8: 5,792 | D8: 2,316,111,876 | E8: 278745792 | F8: 6319.432713 | G8: 278185.267 | H8: 115175.3906
A9: MAŁOPOLSKIE | B9: 47,272 | C9: 5,669 | D9: 2,234,641,984 | E9: 267984968 | F9: 6208.208171 | G9: 290745.4519 | H9: 213790.6406
A10: MAZOWIECKIE | B10: 83,123 | C10: 10,802 | D10: 6,909,433,129 | E10: 897894646 | F10: 10877.42486 | G10: 5688.909848 | H10: 21814737.89
A11: OPOLSKIE | B11: 41,080 | C11: 6,809 | D11: 1,687,566,400 | E11: 279713720 | F11: 5401.765122 | G11: 1980310.001 | H11: 459175.6406
A12: PODKARPACKIE | B12: 36,088 | C12: 5,136 | D12: 1,302,343,744 | E12: 185347968 | F12: 4751.609486 | G12: 147756.0674 | H12: 990771.3906
A13: PODLASKIE | B13: 37,077 | C13: 5,381 | D13: 1,374,703,929 | E13: 199511337 | F13: 4880.416362 | G13: 250583.979 | H13: 563062.6406
A14: POMORSKIE | B14: 50,001 | C14: 7,399 | D14: 2,500,100,001 | E14: 369957399 | F14: 6563.631795 | G14: 697840.0373 | H14: 1606873.141
A15: ŚLĄSKIE | B15: 53,654 | C15: 6,614 | D15: 2,878,751,716 | E15: 354867556 | F15: 7039.396727 | G15: 180962.3756 | H15: 232926.8906
A16: ŚWIĘTOKRZYSKIE | B16: 36,970 | C16: 3,883 | D16: 1,366,780,900 | E16: 143554510 | F16: 4866.480734 | G16: 967234.3542 | H16: 5055190.141
A17: WARMIŃSKO-MAZURSKIE | B17: 36,306 | C17: 5,075 | D17: 1,318,125,636 | E17: 184252950 | F17: 4780.001699 | G17: 87023.99756 | H17: 1115928.141
A18: WIELKOPOLSKIE | B18: 56,496 | C18: 6,960 | D18: 3,191,798,016 | E18: 393212160 | F18: 7409.537416 | G18: 202083.8885 | H18: 686619.3906
A19: ZACHODNIOPOMORSKIE | B19: 43,150 | C19: 5,917 | D19: 1,861,922,500 | E19: 255318550 | F19: 5671.360909 | G19: 60338.56306 | H19: 45956.64062
A20: Suma | B20: =SUM(B4:B19) -> 746,913 | C20: =SUM(C4:C19) -> 98,102 | D20: =SUM(D4:D19) -> 37,074,176,409 | E20: =SUM(E4:E19) -> 4,867,008,050 | G20: =SUM(G4:G19) -> 6,816,975 | H20: 44,248,378
B22: 16 | C22: =B20 -> 746,913 | E22: =C20 -> 98,102 | G22: Yśr | H22: =AVERAGE(C4:C19) -> 6,131
B23: =B20 -> 746,913 | C23: =D20 -> 37,074,176,409 | E23: =E20 -> 4,867,008,050
B25: =MINVERSE(B22:C23) -> 1.050028146 | C25: -2.115433838e-05 | E25: =MMULT(B25:C26,E22:E23) -> 51.52603074 | F25: b0 | G25: Współczynnik zbieżności | H25: =G20/H20 -> 0.1540615867
B26: -2.115433838e-05 | C26: 4.531577494e-10 | E26: 0.1302395105 | F26: b1 | G26: Współczynnik determinacji | H26: =1-H25 -> 0.8459384133

Sheet Zadanie
A1: Nazwa | B1: Stopa bezrobocia | C1: produkt krajowy brutto na 1 mieszkańca
B2: X | C2: Y
B3: [%] | C3: [zł]
A4: DOLNOŚLĄSKIE | B4: 5.7 | C4: 57,228
A5: KUJAWSKO-POMORSKIE | B5: 9.9 | C5: 41,875
A6: LUBELSKIE | B6: 8.8 | C6: 35,712
A7: LUBUSKIE | B7: 6.5 | C7: 42,755
A8: ŁÓDZKIE | B8: 6.7 | C8: 48,126
A9: MAŁOPOLSKIE | B9: 5.3 | C9: 47,272
A10: MAZOWIECKIE | B10: 5.6 | C10: 83,123
A11: OPOLSKIE | B11: 7.3 | C11: 41,080
A12: PODKARPACKIE | B12: 9.6 | C12: 36,088
A13: PODLASKIE | B13: 8.5 | C13: 37,077
A14: POMORSKIE | B14: 5.4 | C14: 50,001
A15: ŚLĄSKIE | B15: 5.1 | C15: 53,654
A16: ŚWIĘTOKRZYSKIE | B16: 8.8 | C16: 36,970
A17: WARMIŃSKO-MAZURSKIE | B17: 11.7 | C17: 36,306
A18: WIELKOPOLSKIE | B18: 3.7 | C18: 56,496
A19: ZACHODNIOPOMORSKIE | B19: 8.5 | C19: 43,150
